Cogmind - Beta 16.1 @@@ ROGUE MODE // 2026.03.14 @ 08:56:57 Player: RecursiveCharlatan Result: Destroyed by TR-ZQH(R) with Subdweller Laser Performance ------------- Evolutions (0) 0 Regions Visited (2) 400 Robots Destroyed (23) 115 Value Destroyed (449) 449 Prototype IDs (1) 20 Alien Tech Used (0) 0 Bonus (0) 0 TOTAL SCORE: 984 Bonus ------- None Cogmind --------- Core Integrity 0/250 Matter 280/300 Energy 250/250 System Corruption 0% Temperature Cool (6) Movement Core (1550) Ox30 Location -10/Subcaves Parts ------- > --- POWER (1) -------- Ion Engine > --- PROPULSION (2) --- Aluminum Leg Makeshift Leg > --- UTILITY (2) ------ Huge Storage Unit Seismic Detector > --- WEAPON (2) ------- Riot Gun Barrage Gun > --- INVENTORY (25) --- Light Treads Aluminum Leg Wheel Heat Sink Small Storage Unit High-capacity Matter Pod (200) Structural Scanner Signal Interpreter Hacking Suite Hacking Suite Light Assault Rifle Light Assault Rifle Light Assault Rifle Battle Cannon Mining Claw Mining Claw Makeshift Axe Peak State ------------ > --- POWER ------------ Ion Engine > --- PROPULSION ------- Aluminum Leg Makeshift Leg > --- UTILITY ---------- Huge Storage Unit Seismic Detector > --- WEAPON ----------- Riot Gun Makeshift Axe > --- INVENTORY -------- Light Treads Aluminum Leg Wheel Heat Sink Small Storage Unit High-capacity Matter Pod Structural Scanner Signal Interpreter Hacking Suite Hacking Suite Light Assault Rifle Light Assault Rifle Light Assault Rifle Battle Cannon Mining Claw Mining Claw [Rating: 17] Favorites ----------- Power Ion Engine Engine Ion Engine Propulsion Light Treads Treads Light Treads Leg Aluminum Leg Utility Seismic Detector Device Seismic Detector Storage Huge Storage Unit Weapon Light Assault Rifle Energy Gun Riot Gun Ballistic Gun Light Assault Rifle Slashing Weapon Makeshift Axe Build | -11 -10 -10 ------- Run | Yrd Mat Sub Slots Evolved . | . . . Power . | . . . Propulsion . | . . . Utility . | . . . Weapon . | . . . Parts Attached 22 | 7 7 8 Power 2 | 1 . 1 Engine 2 | 1 . 1 Core . | . . . Reactor . | . . . Propulsion 7 | 3 2 2 Treads 4 | 2 2 . Leg 3 | 1 . 2 Wheel . | . . . Hover . | . . . Flight . | . . . Utility 3 | 1 2 . Device 1 | . 1 . Storage 2 | 1 1 . Processor . | . . . Hackware . | . . . Protection . | . . . Artifact . | . . . Weapon 10 | 2 3 5 Energy Gun 2 | . 1 1 Energy Cannon . | . . . Ballistic Gun 6 | 2 2 2 Ballistic Cannon . | . . . Launcher . | . . . Special Weapon . | . . . Impact Weapon . | . . . Slashing Weapon 2 | . . 2 Piercing Weapon . | . . . Special Melee Weapon . | . . . Unidentified Prototypes 1 | . 1 . Parts Lost 7 | . 3 4 Power 1 | . . 1 Propulsion 3 | . 2 1 Utility . | . . . Weapon 3 | . 1 2 Highest Loss Streak 3 | . 2 3 To Critical Strikes . | . . . Average Backups 10 | 1 8 15 Power . | . 1 . Propulsion 2 | 1 2 2 Utility 5 | . 4 7 Weapon 2 | . 1 5 Tool/Special . | . . . Unused Backups 10 | . . 10 Power . | . . . Propulsion 1 | . . 1 Utility 6 | . . 6 Weapon 3 | . . 3 Tool/Special . | . . . Average Slot Usage (%) 93 | . 90 99 Engine 13 | . 14 13 Treads 16 | . 20 7 Leg 7 | . . 20 Device 13 | . 12 14 Storage 14 | . 14 14 Energy Gun 4 | . 2 7 Ballistic Gun 22 | . 25 18 Peak Build Rating 17 | 6 9 17 Average Rating 9 | 4 7 12 On Entrance 5 | . 6 9 Avg Prop Armor Cover (%) 14 | 14 . . Naked Turns . | . . . Heaviest Build 92 | 13 90 92 Greatest Support 40 | 40 40 40 Greatest Overweight (x) 30 | . 4 30 Average Overweight (x) 1 | . 1 2 Largest Inventory Capacity 25 | 8 25 25 Average Capacity 20 | 6 18 25 Most Carried 17 | 3 15 17 Average Carried 10 | 1 8 15 Final Capacity 25 | 8 25 25 Final Carried 17 | 3 15 17 Class Distribution -------------------- 100% | Mutant Dominant Class ---------------- Mutant | -10/Materials Mutant | -10/Subcaves Resources | -11 -10 -10 ----------- Run | Yrd Mat Sub Matter Collected 928 | 200 602 126 Remotely . | . . . Salvage Created 700 | . 564 136 Parts 44 | . 36 8 Haulers Intercepted 2 | . 2 . Recyclers Shooed . | . . . Parts Field Recycled . | . . . Retrieved Matter . | . . . Parts Self-Destructed 10 | . . 10 Prevented . | . . . Parts Restored . | . . . Kills | -11 -10 -10 ------- Run | Yrd Mat Sub Combat Hostiles Destroyed 17 | . 14 3 Guns 17 | . 14 3 Classes Destroyed 8 | . 7 1 Worker 1 | . 1 . Hauler 2 | . 2 . Recycler 1 | . 1 . Operator 1 | . 1 . Watcher 1 | . 1 . Swarmer 9 | . 9 . Grunt 5 | . 5 . Subdweller 3 | . . 3 Best Kill Streak 3 | . 3 2 Combat Bots Only 3 | . 3 2 Max Kills in Single Turn 2 | . 2 1 Gunslinging 1 | . 1 . Exploded . | . . . Melee . | . . . Uniques/NPCs Destroyed . | . . . Combat | -11 -10 -10 -------- Run | Yrd Mat Sub Hostile Shots Fired 126 | . 96 30 Missed 30 | . 19 11 Hits 96 | . 77 19 Projectile 96 | . 77 19 AOE 4 | . . 4 Critical Strikes 3 | . 2 1 Damage Taken 1373 | . 828 545 Core 261 | . 136 125 Absorbed by Shields . | . . . Core Remaining (%) 100 | 100 . . Volleys Fired 83 | . 66 17 Largest 2 | . 2 2 Hottest 95 | . 40 95 Shots Fired 138 | . 105 33 Gun 138 | . 105 33 Cannon . | . . . Launcher . | . . . Special . | . . . Kinetic 129 | . 105 24 Thermal . | . . . Explosive . | . . . Electromagnetic 9 | . . 9 Robot Hit Streak 10 | . 7 10 Robot Miss Streak 5 | . 4 5 Penetration Max . | . . . Secondary Targets 4 | . 3 1 Max Gunslinging Chain 1 | . 1 1 Shots Hit Robots 83 | . 62 21 Core Hits 41 | . 30 11 Critical Kills . | . . . Critical Parts Destroyed . | . . . Critical Strikes . | . . . Melee Attacks 6 | . . 6 Impact . | . . . Slashing 6 | . . 6 Piercing . | . . . Sneak Attacks . | . . . Combat Hostiles . | . . . Follow-up Attacks . | . . . Damage Inflicted 1017 | . 752 265 Guns 1017 | . 752 265 Cannons . | . . . Explosions . | . . . Melee . | . . . Ramming . | . . . Kinetic 882 | . 752 130 Thermal . | . . . Explosive . | . . . Electromagnetic 135 | . . 135 Impact . | . . . Slashing . | . . . Piercing . | . . . Highest Corruption . | . . . Average Corruption . | . . . Corruption Purged . | . . . Corruption Blocked . | . . . Overload Shots . | . . . Overflow Damage . | . . . Projectiles . | . . . Explosions . | . . . Melee . | . . . Knockbacks . | . . . Impact . | . . . Kinetic . | . . . Secondary . | . . . Self-Inflicted Damage . | . . . Shots . | . . . Rammed . | . . . Targets Rammed . | . . . Kicked . | . . . Crushed . | . . . Highest Temperature 23 | . 23 . Average Temperature 8 | . 8 . Received Heat Transfer 330 | . 282 48 Siege Activations . | . . . Martial Activations . | . . . Shielding Activations . | . . . Robots Disrupted . | . . . Combat Hostiles . | . . . Robots Corrupted . | . . . Combat Hostiles . | . . . Parts Fried 1 | . . 1 Impact Corruptions . | . . . Robots Melted . | . . . Combat Hostiles . | . . . Parts Melted . | . . . Heat Transferred . | . . . Parts Sabotaged . | . . . Parts Stolen . | . . . Parts Stripped . | . . . Power Chain Reactions . | . . . Alert | -11 -10 -10 ------- Run | Yrd Mat Sub Maximum Alert Level . | . . . Low Security (%) 100 | 100 100 . Level 1 . | . . . Level 2 . | . . . Level 3 . | . . . Level 4 . | . . . Level 5 . | . . . High Security . | . . . Max Security . | . . . Peak Influence 95 | . 95 . Initial . | . . . Average 22 | . 23 . Influence Increases 414 | . 414 . Destroy 0b10 Robot/C 280 | . 280 . Destroy 0b10 Robot/NC 30 | . 30 . Destroy Leader 66 | . 66 . Successful Hack 23 | . 23 . Lose Combat Pursuer 15 | . 15 . Influence Decreases 414 | . 373 41 Entered New Map 21 | . . 21 Time Decay 383 | . 363 20 Lost Part 10 | . 10 . Squads Dispatched 2 | . 2 . Investigation . | . . . Extermination . | . . . Reinforcement 2 | . 2 . Assault . | . . . Garrison . | . . . Intercept . | . . . Searches Triggered . | . . . Construction Impeded . | . . . Haulers Reinforced . | . . . Active Scanning Responses . | . . . Cargo Convoy Interrupts . | . . . Stealth | -11 -10 -10 --------- Run | Yrd Mat Sub Distress Signals 1 | . 1 . Communications Jammed . | . . . Distress Signals . | . . . Times Spotted 29 | . 23 6 Peak Tracking Total 5 | . 5 2 Tactical Retreats 2 | . 1 1 Traps | -11 -10 -10 ------- Run | Yrd Mat Sub Traps Triggered . | . . . Indirectly . | . . . Trap Hack Attempts . | . . . Triggered . | . . . Disarmed . | . . . Reprogrammed . | . . . Reused . | . . . Traps Extracted . | . . . Installed . | . . . Triggered . | . . . Machines | -11 -10 -10 ---------- Run | Yrd Mat Sub Machines Disabled . | . . . Max in Single Turn . | . . . Machines Repaired . | . . . Machines Dismantled . | . . . Machines Sabotaged . | . . . Overloaded Fab Kills . | . . . Hacking | -11 -10 -10 --------- Run | Yrd Mat Sub Machines Accessed 6 | . 6 . Terminals 5 | . 5 . Fabricators . | . . . Repair Stations . | . . . Recycling Units 1 | . 1 . Scanalyzers . | . . . Garrison Access . | . . . Total Hacks 19 | . 19 . Successful 14 | . 14 . Failed 5 | . 5 . Catastrophic . | . . . Database Lockouts . | . . . Manual 18 | . 18 . Terminals 17 | . 17 . Fabricators . | . . . Repair Stations . | . . . Recycling Units 2 | . 2 . Scanalyzers . | . . . Garrison Access . | . . . Terminal Hacks 2 | . 2 . Recall Reinforcements 1 | . 1 . Zone Layout 1 | . 1 . Fabricator Hacks . | . . . Repair Station Hacks . | . . . Recycling Unit Hacks . | . . . Scanalyzer . | . . . Garrison Access Hacks . | . . . Unauthorized Hacks 12 | . 12 . Terminals 12 | . 12 . Assimilate 3 | . 3 . Botnet 4 | . 4 . Skim 5 | . 5 . Fabricators . | . . . Repair Stations . | . . . Recycling Units . | . . . Scanalyzers . | . . . Garrison Access . | . . . Data Cores Recovered . | . . . Used . | . . . Hacking Detections 5 | . 5 . Full Trace Events 1 | . 1 . Feedback Events . | . . . Feedback Blocked . | . . . Robot Schematics Acquired . | . . . Robots Built . | . . . Authchips . | . . . Time . | . . . Total Robot Build Rating . | . . . Part Schematics Acquired . | . . . Parts Built . | . . . Authchips . | . . . Time . | . . . Total Part Build Rating . | . . . Part Studies Acquired . | . . . Parts Repaired . | . . . Time . | . . . Parts Recycled . | . . . Recycled Matter . | . . . Retrieved Matter . | . . . Retrieved Components . | . . . Parts Scanalyzed . | . . . Part Schematics Acquired . | . . . Parts Damaged . | . . . Bothacking | -11 -10 -10 ------------ Run | Yrd Mat Sub Used RIF Installer . | . . . Robots Hacked . | . . . Non-combat . | . . . Combat . | . . . Robot Hacks Applied . | . . . Relay Couplers Released . | . . . Fabnet Peak Effective % . | . . . Robots Rewired . | . . . Allies Hacked . | . . . Hacks Repelled . | . . . Allies | -11 -10 -10 -------- Run | Yrd Mat Sub Total Allies 1 | . 1 . Largest Group 1 | . 1 . Highest-Rated Group 10 | . 10 . Highest-Rated Ally 10 | . 10 . Total Orders . | . . . Ally Attacks . | . . . Total Damage . | . . . Kills . | . . . Allies Corrupted . | . . . Allies Melted . | . . . Intel | -11 -10 -10 ------- Run | Yrd Mat Sub Active Infowar (turns) 3652 | . 2224 1428 Seismic 3652 | . 2224 1428 Robot Analysis Total . | . . . Derelict Logs Recovered . | . . . Drone Launches . | . . . Drone Recoveries . | . . . Exploration | -11 -10 -10 ------------- Run | Yrd Mat Sub Turns Passed 3961 | 97 2436 1428 Spaces Moved 1225 | 56 723 446 Core 3 | 2 . 1 Treads 887 | 49 723 115 Legs 335 | 5 . 330 Wheels . | . . . Hover . | . . . Flight . | . . . Fastest Speed 50 | 50 160 270 Average Speed 272 | 152 266 297 Slowest Speed 1550 | 160 480 1550 Overloaded Moves . | . . . Propulsion Burnouts . | . . . Robots Hopped . | . . . Potential Cave-ins . | . . . Cave-ins Triggered . | . . . Exploration Rate (%) 41 | 3 82 38 Regions Visited 2 Branch Regions 1 Pre-discovered Areas . | . . . Known Exits Taken 1 | . 1 . Unknown Exits Taken 1 | 1 . . Scrap Searched . | . . . Spaces Dug . | . . . Terrain Destroyed . | . . . Melee . | . . . Projectile . | . . . AOE . | . . . Terrain Rammed . | . . . Walls Destroyed . | . . . Machines Disabled . | . . . Actions | -11 -10 -10 --------- Run | Yrd Mat Sub Total 1707 | 65 1130 512 Wait 343 | . 318 25 Move 1223 | 55 722 446 Hop . | . . . Pick Up 19 | 2 11 6 Fast Attach 12 | 7 5 . Attach 5 | . 1 4 Detach 2 | 1 1 . Swap 12 | . 4 8 Drop 2 | . 2 . Fire 83 | . 66 17 Melee 6 | . . 6 Ram . | . . . Kick . | . . . Crush . | . . . Escape Stasis . | . . . Rewire . | . . . Trap . | . . . Miscellaneous . | . . . Route ------- -11/Scrapyard -10/Materials (discovered 5 exits: *Mat x3 / [*Min] / *Sub) -10/Subcaves (discovered 1 exit: Mat) History --------- Turn | Location | Event 21 | -11/Scrapyard | Discovered new exit (range 15) 98 | -11/Scrapyard | Entered Materials 308 | -10/Materials | Build established: Mutant 399 | -10/Materials | Discovered new exit (range 16) 565 | -10/Materials | Discovered new exit (range 7) 1357 | -10/Materials | Identified exit to Materials 1479 | -10/Materials | Identified exit to Subcaves 1528 | -10/Materials | Learned location of 2 exits from Mines 1567 | -10/Materials | Learned 2 Mines zone layouts 2166 | -10/Materials | Core integrity fell below 50% 2534 | -10/Materials | Entered Subcaves 2535 | -10/Subcaves | Approached by a straggling Scientist 2535 | -10/Subcaves | Identified exit to Materials 2577 | -10/Subcaves | A swath of the cavern ceiling suddenly collapsed 3253 | -10/Subcaves | Lost 3 parts (1p2w) 3778 | -10/Subcaves | Shifting Twisted Machinery released Battle Cannon 3829 | -10/Subcaves | Shifting Twisted Machinery released Barrage Gun 3959 | -10/Subcaves | Core integrity fell below 20% 3962 | -10/Subcaves | Destroyed by TR-ZQH(R) with Subdweller Laser Last Messages --------------- 03205_ 7T-GYV(c) destroyed. 03207_ KX-BYG(R) IFF system glitched. 03218_ Sub. Monowheel fried. 03218_ KX-BYG(R) destroyed. 03218_ Switching to secondary target: I2-2M2(R). 03222_ Imp. EM Shotgun destroyed. 03230_ I2-2M2(R) destroyed. 03241_ Acquired 39 matter. 03244_ Subatomizers dissect the Sub. Power Source. 03254_ Subatomizers dissect the Wheel. 03533_ Acquired Wheel. 03537_ Subatomizers dissect the Corrupted Sub. Monowheel. Battle Cannon falls loose from the Twisted Machinery. Barrage Gun falls loose from the Twisted Machinery. 03830_ Acquired Battle Cannon. 03862_ Acquired Barrage Gun. Map ----- +----------------------------------------------------+ | #??# #####??# ## #???????????????????????? | | #### ##????# ### ##???????????????????????? | | ## ##???#### ###????????????????????????? | | #????### ##??????????????????????????? | | ###### #???????????????????????????? | | ### #???????????????????????????? | | #### ##??????????????????????????? | | # ##?# #??????????????????????????? | | ### ##?## #?????????????????????????? | | ??# ##??# ## #?????????????????????????? | | ??###???# ##### ###?????????????????????????? | | ????????# ##??#### #???????????????????????????? | | ????????# #??##"#####???????????????????????????? | | ????????# #?## ""#####??????????????????????????? | | ????????# ### " " "##?????????????????????????? | | ????????# ## " " ""#?????????????????????????? | | ??#?????# ### " " "##?????????????????????????? | | ??# ????# #?##" " ##??????????????????????????? | | ??# ???# #??#" "" #???????????????????????????? | | ???# ### #??#""" #???????????????????????????? | | ???# #### """ ######?###??????????????????? | | ???# ##" " # # # ## ## ??????????? | | ???# """" ## ???????????? | | ???# """""" ## # #??????????????????? | | ???# """"" ## #####????????????????????? | | ???# #### """" R@##?????????????????????? | | ???# ???## " R ####??????????????????? | | ???# ????# " ##?????????????????? | | ???# ?????# #?????????????????? | | ??? ?????## ## ??????????? | | ?? #??????######## ###???????????? | | ? ??????????????# ##?????????????? | | ## #??????????????# ####??????????????? | | ?###???????????????#### #?????????????????? | | ??????????????????????## ####?????????????????? | | ???????????????????????######????????????????????? | | ?????????????????????????????????????????????????? | | ?????????????????????????????????????????????????? | | ?????????????????????????????????????????????????? | | ?????????????????????????????????????????????????? | | ?????????????????????????????????????????????????? | | ?????????????????????????????????????????????????? | | ?????????????????????????????????????????????????? | | ?????????????????????????????????????????????????? | | ?????????????????????????????????????????????????? | | ?????????????????????????????????????????????????? | | ?????????????????????????????????????????????????? | | ?????????????????????????????????????????????????? | | ?????????????????????????????????????????????????? | | ?????????????????????????????????????????????????? | +----------------------------------------------------+ Best States ------------- Heat Dissipation 25 Energy Generation 10 Energy Capacity 250 Matter Stores 300 Matter Capacity 300 Sight Range 16 Terrain Scan Density 10 Evasion (%) 50 Recoil Reduction 2 Item Schematics ----------------- None Robot Schematics ------------------ None Fabricated ------------ Nothing Repaired ---------- Nothing Studied --------- None Alien Tech Used ----------------- None Achievements -------------- None Challenges ------------ None Game ------ Seed LongswordScatterArmor Manual? 0 Play Time 00:14:11 Cumulative 137.2 hours Start 2026.03.14 @ 08:46:18 End 2026.03.14 @ 08:56:57 Sessions 1 Manual Loads 0 Difficulty Rogue Special Mode None Game No. 263 Rogue 263 Adventurer 0 Explorer 0 Win Type - Total 3 Types 2/0/0/1/0/0/0/0/0/0 Lore% 58 Gallery% 58 Achievement% 44 Wizard Run 0 Options --------- Layout 2 ASCII 0 Keyboard 1 Movement Numpad Keybinds 0 Fullscreen 1 Font 24/Smallcaps Map View 50x44 Zoom Use 0% Tactical HUD 1 Map Filters NONE Filters NONE Steam 1 RUN: 098d0d5b-7e55-4e6e-a46f-0302cb787aab